[Event "Masters Tournament (MTO)"]
[Site "Biel, Switzerland"]
[Date "2026.07.23"]
[Round "10.37"]
[White "Fattori Dittmar, Luca"]
[Black "Heitmann, Erik"]
[Result "1/2-1/2"]
[TimeControl "100+30+30sec/move"]
[WhiteTitle "-"]
[BlackTitle "-"]
[WhiteFideId "34678883"]
[BlackFideId "34608940"]
[WhiteElo "1840"]
[BlackElo "1949"]

1. e4 {[%clk 01:40:01]} {[%emt 00:00:58]} c5 {[%clk 01:40:55]} {[%emt
00:00:04]} 2. Nf3 {[%clk 01:37:31]} {[%emt 00:03:01]} d6 {[%clk 01:41:17]}
{[%emt 00:00:08]} 3. Bb5+ {[%clk 01:36:54]} {[%emt 00:01:07]} Nd7 {[%clk
01:41:39]} {[%emt 00:00:08]} 4. O-O {[%clk 01:36:52]} {[%emt 00:00:33]} a6
{[%clk 01:41:55]} {[%emt 00:00:12]} 5. Bxd7+ {[%clk 01:36:47]} {[%emt
00:00:37]} Bxd7 {[%clk 01:41:31]} {[%emt 00:00:55]} 6. d4 {[%clk 01:37:08]}
{[%emt 00:00:08]} cxd4 {[%clk 01:40:48]} {[%emt 00:01:12]} 7. Qxd4 {[%clk
01:35:26]} {[%emt 00:02:13]} Qc7 {[%clk 01:37:48]} {[%emt 00:03:29]} 8. Nc3
{[%clk 01:33:02]} {[%emt 00:02:55]} e6 {[%clk 01:31:02]} {[%emt 00:07:15]} 9.
Re1 {[%clk 01:31:56]} {[%emt 00:01:36]} Ne7 {[%clk 01:23:20]} {[%emt 00:08:12]}
10. Bg5 {[%clk 01:30:45]} {[%emt 00:01:42]} Nc6 {[%clk 01:20:06]} {[%emt
00:03:44]} 11. Qd2 {[%clk 01:31:04]} {[%emt 00:00:10]} h6 {[%clk 01:18:30]}
{[%emt 00:02:06]} 12. Be3 {[%clk 01:29:48]} {[%emt 00:01:47]} b5 {[%clk
01:16:20]} {[%emt 00:02:40]} 13. Rad1 {[%clk 01:27:34]} {[%emt 00:02:44]} Na5
{[%clk 01:05:11]} {[%emt 00:11:39]} 14. Qd4 {[%clk 01:25:29]} {[%emt 00:02:34]}
Nc4 {[%clk 01:03:48]} {[%emt 00:01:53]} 15. Bc1 {[%clk 01:23:31]} {[%emt
00:02:28]} b4 {[%clk 00:53:37]} {[%emt 00:10:42]} 16. Ne2 {[%clk 01:21:01]}
{[%emt 00:02:59]} e5 {[%clk 00:50:52]} {[%emt 00:03:15]} 17. Qd5 {[%clk
01:18:01]} {[%emt 00:03:31]} Rc8 {[%clk 00:41:15]} {[%emt 00:10:07]} 18. c3
{[%clk 01:16:38]} {[%emt 00:01:53]} Be6 {[%clk 00:38:20]} {[%emt 00:03:25]} 19.
Qd3 {[%clk 01:16:50]} {[%emt 00:00:17]} bxc3 {[%clk 00:30:28]} {[%emt
00:08:22]} 20. Nxc3 {[%clk 01:17:10]} {[%emt 00:00:10]} Qc6 {[%clk 00:23:18]}
{[%emt 00:07:41]} 21. b3 {[%clk 01:11:25]} {[%emt 00:06:15]} Na5 {[%clk
00:23:47]} 22. Bd2 {[%clk 01:07:33]} {[%emt 00:04:22]} Nb7 {[%clk 00:21:34]}
{[%emt 00:02:43]} 23. Rc1 {[%clk 01:03:39]} {[%emt 00:04:23]} Nc5 {[%clk
00:21:58]} {[%emt 00:00:07]} 24. Qe2 {[%clk 00:58:45]} {[%emt 00:05:24]} Qb7
{[%clk 00:10:29]} {[%emt 00:11:59]} 25. Nd5 {[%clk 00:56:12]} {[%emt 00:03:03]}
Bxd5 {[%clk 00:10:34]} {[%emt 00:00:25]} 26. exd5 {[%clk 00:56:39]} {[%emt
00:00:03]} Be7 {[%clk 00:10:01]} {[%emt 00:01:03]} 27. b4 {[%clk 00:57:03]}
{[%emt 00:00:06]} Nd7 {[%clk 00:10:01]} {[%emt 00:00:29]} 28. Rxc8+ {[%clk
00:57:23]} {[%emt 00:00:10]} Qxc8 {[%clk 00:10:30]} 29. Rc1 {[%clk 00:57:47]}
{[%emt 00:00:06]} Qb7 {[%clk 00:10:41]} {[%emt 00:00:19]} 30. Qc4 {[%clk
00:54:20]} {[%emt 00:03:58]} O-O {[%emt 00:05:24]} 1/2-1/2

[Event "Masters Tournament (MTO)"]
[Site "Biel, Switzerland"]
[Date "2026.07.23"]
[Round "10.38"]
[White "Morrison, Joseph"]
[Black "Hajduk, Tomasz"]
[Result "0-1"]
[TimeControl "100+30+30sec/move"]
[WhiteTitle "-"]
[BlackTitle "-"]
[WhiteFideId "479535"]
[BlackFideId "21811415"]
[WhiteElo "2048"]
[BlackElo "1921"]

1. Nf3 {[%clk 01:40:57]} {[%emt 00:00:04]} d5 {[%clk 01:40:53]} {[%emt
00:00:07]} 2. g3 {[%clk 01:41:17]} {[%emt 00:00:09]} e6 {[%clk 01:41:03]}
{[%emt 00:00:21]} 3. Bg2 {[%clk 01:41:36]} {[%emt 00:00:11]} Nf6 {[%clk
01:41:28]} {[%emt 00:00:05]} 4. O-O {[%clk 01:42:01]} {[%emt 00:00:06]} Be7
{[%clk 01:41:41]} {[%emt 00:00:17]} 5. c4 {[%clk 01:41:53]} {[%emt 00:00:38]}
c6 {[%clk 01:41:56]} {[%emt 00:00:15]} 6. Qc2 {[%clk 01:39:30]} {[%emt
00:02:52]} Nbd7 {[%clk 01:41:38]} {[%emt 00:00:48]} 7. d3 {[%clk 01:37:00]}
{[%emt 00:03:00]} O-O {[%clk 01:41:45]} {[%emt 00:00:23]} 8. e4 {[%clk
01:35:54]} {[%emt 00:01:35]} dxe4 {[%clk 01:39:39]} {[%emt 00:02:37]} 9. dxe4
{[%clk 01:36:11]} {[%emt 00:00:13]} e5 {[%clk 01:40:06]} {[%emt 00:00:03]} 10.
Rd1 {[%clk 01:33:43]} {[%emt 00:02:58]} Qc7 {[%clk 01:40:13]} {[%emt 00:00:23]}
11. a3 {[%clk 01:32:45]} {[%emt 00:01:28]} Nc5 {[%clk 01:38:00]} {[%emt
00:02:43]} 12. Nc3 {[%clk 01:29:57]} {[%emt 00:03:18]} a5 {[%clk 01:38:01]}
{[%emt 00:00:29]} 13. Rb1 {[%clk 01:22:11]} {[%emt 00:08:15]} Bg4 {[%clk
01:31:54]} {[%emt 00:06:38]} 14. Be3 {[%clk 01:18:03]} {[%emt 00:04:38]} Rfd8
{[%clk 01:26:07]} {[%emt 00:06:17]} 15. h3 {[%clk 01:15:09]} {[%emt 00:03:24]}
Bh5 {[%clk 01:19:44]} {[%emt 00:06:52]} 16. g4 {[%clk 01:03:19]} {[%emt
00:12:21]} Bg6 {[%clk 01:20:09]} {[%emt 00:00:05]} 17. Nh4 {[%clk 01:03:03]}
{[%emt 00:00:46]} Ne6 {[%clk 01:18:13]} {[%emt 00:02:26]} 18. Nxg6 {[%clk
00:50:53]} {[%emt 00:12:40]} hxg6 {[%clk 01:18:37]} {[%emt 00:00:06]} 19. Ne2
{[%clk 00:50:18]} {[%emt 00:01:04]} Bc5 {[%clk 01:10:43]} {[%emt 00:08:24]} 20.
Bxc5 {[%clk 00:48:38]} {[%emt 00:02:11]} Nxc5 {[%clk 01:11:06]} {[%emt
00:00:08]} 21. b4 {[%clk 00:42:08]} {[%emt 00:07:00]} axb4 {[%clk 01:08:57]}
{[%emt 00:02:39]} 22. axb4 {[%clk 00:42:25]} {[%emt 00:00:12]} Ne6 {[%clk
01:09:23]} {[%emt 00:00:04]} 23. Qb2 {[%clk 00:37:35]} {[%emt 00:05:20]} c5
{[%clk 00:37:37]} {[%emt 00:32:15]} 24. bxc5 {[%clk 00:31:27]} {[%emt
00:06:39]} Qxc5 {[%clk 00:36:58]} {[%emt 00:01:09]} 25. Rdc1 {[%clk 00:27:30]}
{[%emt 00:04:26]} Rd3 {[%clk 00:25:25]} {[%emt 00:12:03]} 26. Qxb7 {[%emt
00:09:20]} Ra2 {[%clk 00:25:37]} 27. Rb2 {[%clk 00:15:48]} {[%emt 00:03:41]}
Rd2 {[%clk 00:25:41]} {[%emt 00:00:26]} 28. Rxa2 {[%clk 00:15:22]} {[%emt
00:00:56]} Rxa2 {[%clk 00:26:04]} {[%emt 00:00:08]} 29. Kf1 {[%clk 00:15:12]}
{[%emt 00:00:39]} Nf4 {[%clk 00:25:37]} {[%emt 00:00:57]} 0-1

[Event "Masters Tournament (MTO)"]
[Site "Biel, Switzerland"]
[Date "2026.07.23"]
[Round "10.39"]
[White "Stevens, Christian"]
[Black "Wenger, Arejou"]
[Result "1/2-1/2"]
[TimeControl "100+30+30sec/move"]
[WhiteTitle "-"]
[BlackTitle "-"]
[WhiteFideId "649090"]
[BlackFideId "1336584"]
[WhiteElo "2014"]
[BlackElo "1873"]

1. d3 {[%clk 01:40:54]} {[%emt 00:00:05]} e6 {[%clk 01:36:30]} {[%emt
00:04:30]} 2. g3 {[%clk 01:40:40]} {[%emt 00:00:44]} c5 {[%clk 01:35:50]}
{[%emt 00:01:11]} 3. e4 {[%clk 01:39:33]} {[%emt 00:01:37]} d5 {[%clk
01:33:49]} {[%emt 00:02:32]} 4. Nc3 {[%clk 01:39:50]} {[%emt 00:00:12]} Nc6
{[%clk 01:31:18]} {[%emt 00:03:01]} 5. Bg2 {[%clk 01:40:08]} {[%emt 00:00:10]}
d4 {[%clk 01:29:51]} {[%emt 00:01:59]} 6. Nce2 {[%clk 01:40:26]} {[%emt
00:00:11]} Bd6 {[%clk 01:28:45]} {[%emt 00:01:37]} 7. f4 {[%clk 01:40:39]}
{[%emt 00:00:16]} Nge7 {[%clk 01:28:08]} {[%emt 00:01:07]} 8. Nf3 {[%clk
01:40:29]} {[%emt 00:00:39]} O-O {[%clk 01:28:26]} {[%emt 00:00:14]} 9. O-O
{[%clk 01:40:20]} {[%emt 00:00:39]} a6 {[%clk 01:18:02]} {[%emt 00:10:55]} 10.
a4 {[%clk 01:37:55]} {[%emt 00:02:54]} Rb8 {[%clk 01:17:16]} {[%emt 00:01:15]}
11. g4 {[%clk 01:35:57]} {[%emt 00:02:27]} f5 {[%clk 01:15:33]} {[%emt
00:02:14]} 12. gxf5 {[%clk 01:32:03]} {[%emt 00:04:25]} exf5 {[%clk 01:15:52]}
{[%emt 00:00:11]} 13. e5 {[%emt 00:04:00]} Bc7 {[%clk 01:16:09]} 14. c4 {[%clk
01:22:30]} {[%emt 00:06:45]} Ba5 {[%clk 00:54:07]} {[%emt 00:22:34]} 15. Kh1
{[%clk 01:21:30]} {[%emt 00:01:29]} Qc7 {[%clk 00:53:17]} {[%emt 00:01:19]} 16.
Rg1 {[%clk 01:18:58]} {[%emt 00:03:01]} Nd8 {[%clk 00:51:53]} {[%emt 00:01:55]}
17. Ng3 {[%clk 01:13:32]} {[%emt 00:05:56]} Ne6 {[%clk 00:45:44]} {[%emt
00:06:40]} 18. Nh4 {[%clk 01:11:46]} {[%emt 00:02:15]} Bd7 {[%clk 00:38:09]}
{[%emt 00:08:05]} 19. Bd5 {[%clk 00:56:50]} {[%emt 00:15:26]} Bc6 {[%clk
00:34:20]} {[%emt 00:04:21]} 20. Qf3 {[%clk 00:56:23]} {[%emt 00:00:56]} Kh8
{[%clk 00:31:08]} {[%emt 00:03:41]} 21. Rg2 {[%clk 00:46:55]} {[%emt 00:09:58]}
Qd7 {[%clk 00:28:11]} {[%emt 00:03:28]} 22. Bxc6 {[%clk 00:45:43]} {[%emt
00:01:41]} Qxc6 {[%clk 00:26:59]} {[%emt 00:01:43]} 23. Qh5 {[%clk 00:44:20]}
{[%emt 00:01:52]} g6 {[%clk 00:26:38]} {[%emt 00:00:52]} 24. Qe2 {[%clk
00:43:40]} {[%emt 00:01:08]} Qc7 {[%clk 00:23:59]} {[%emt 00:03:10]} 25. Nf3
{[%clk 00:40:30]} {[%emt 00:03:40]} b5 {[%clk 00:23:11]} {[%emt 00:01:19]} 26.
axb5 {[%clk 00:39:28]} {[%emt 00:01:31]} axb5 {[%clk 00:23:32]} {[%emt
00:00:09]} 27. b3 {[%clk 00:39:05]} {[%emt 00:00:52]} bxc4 {[%clk 00:20:31]}
{[%emt 00:03:32]} 28. bxc4 {[%clk 00:39:08]} {[%emt 00:00:28]} Bc3 {[%clk
00:13:34]} {[%emt 00:07:27]} 29. Ra6 {[%clk 00:34:58]} {[%emt 00:04:39]} Nc6
{[%clk 00:11:02]} {[%emt 00:03:02]} 30. Qd1 {[%clk 00:26:43]} {[%emt 00:08:44]}
Rb1 {[%clk 00:08:17]} {[%emt 00:03:16]} 31. Ne2 {[%clk 00:25:21]} {[%emt
00:01:52]} Qb7 {[%clk 00:06:46]} {[%emt 00:02:02]} 32. Qa4 {[%clk 00:21:11]}
{[%emt 00:04:39]} Nb4 {[%clk 00:04:59]} {[%emt 00:02:18]} 33. Ra7 {[%clk
00:15:13]} {[%emt 00:06:27]} Qxf3 {[%clk 00:02:49]} {[%emt 00:02:41]} 34. Qd7
{[%clk 00:15:38]} {[%emt 00:00:04]} Rxc1+ {[%clk 00:01:38]} {[%emt 00:01:42]}
35. Nxc1 {[%clk 00:15:34]} {[%emt 00:00:33]} Qf1+ {[%clk 00:02:04]} {[%emt
00:00:04]} 36. Rg1 {[%clk 00:15:56]} {[%emt 00:00:08]} Qf3+ {[%clk 00:02:31]}
{[%emt 00:00:04]} 37. Rg2 {[%clk 00:16:16]} {[%emt 00:00:08]} Qf1+ {[%clk
00:01:30]} {[%emt 00:01:32]} 38. Rg1 {[%clk 00:16:39]} {[%emt 00:00:07]} Qf3+
{[%clk 00:01:09]} {[%emt 00:00:51]} 1/2-1/2

[Event "Masters Tournament (MTO)"]
[Site "Biel, Switzerland"]
[Date "2026.07.23"]
[Round "10.40"]
[White "Malli, Shiivesh Sunil"]
[Black "Vedant, Nayudu"]
[Result "1/2-1/2"]
[TimeControl "100+30+30sec/move"]
[WhiteTitle "-"]
[BlackTitle "-"]
[WhiteFideId "1340409"]
[BlackFideId "33369780"]
[WhiteElo "1994"]
[BlackElo "1797"]

1. c4 {[%clk 01:40:57]} {[%emt 00:00:03]} e6 {[%clk 01:40:57]} {[%emt
00:00:04]} 2. Nc3 {[%clk 01:41:21]} {[%emt 00:00:05]} d5 {[%clk 01:41:22]}
{[%emt 00:00:07]} 3. cxd5 {[%clk 01:41:47]} {[%emt 00:00:03]} exd5 {[%clk
01:41:47]} {[%emt 00:00:05]} 4. d4 {[%clk 01:42:10]} {[%emt 00:00:07]} Nf6
{[%clk 01:42:13]} {[%emt 00:00:04]} 5. Nf3 {[%clk 01:42:35]} {[%emt 00:00:04]}
Be7 {[%clk 01:42:39]} {[%emt 00:00:05]} 6. Bf4 {[%clk 01:42:59]} {[%emt
00:00:06]} c6 {[%clk 01:42:47]} {[%emt 00:00:22]} 7. e3 {[%clk 01:43:19]}
{[%emt 00:00:10]} Nh5 {[%clk 01:43:02]} {[%emt 00:00:15]} 8. Be5 {[%clk
01:42:34]} {[%emt 00:01:14]} Nd7 {[%clk 01:43:00]} {[%emt 00:00:32]} 9. Bd3
{[%clk 01:42:08]} {[%emt 00:00:57]} Nxe5 {[%clk 01:43:07]} {[%emt 00:00:24]} 10.
Nxe5 {[%clk 01:42:22]} {[%emt 00:00:15]} g6 {[%clk 01:43:24]} {[%emt 00:00:13]}
11. a3 {[%clk 01:37:50]} {[%emt 00:05:02]} Bd6 {[%clk 01:36:30]} {[%emt
00:07:23]} 12. Nf3 {[%clk 01:36:16]} {[%emt 00:02:04]} O-O {[%clk 01:34:57]}
{[%emt 00:02:04]} 13. b4 {[%clk 01:35:23]} {[%emt 00:01:23]} a6 {[%clk
01:32:54]} {[%emt 00:02:33]} 14. Rc1 {[%clk 01:35:10]} {[%emt 00:00:42]} Qe7
{[%clk 01:23:49]} {[%emt 00:09:36]} 15. O-O {[%clk 01:34:26]} {[%emt 00:01:14]}
a5 {[%clk 01:20:46]} {[%emt 00:03:33]} 16. Na4 {[%clk 01:27:20]} {[%emt
00:07:35]} axb4 {[%clk 01:19:19]} {[%emt 00:01:58]} 17. axb4 {[%clk 01:27:27]}
{[%emt 00:00:23]} Bxb4 {[%clk 01:17:10]} {[%emt 00:02:38]} 18. Nb6 {[%clk
01:27:50]} {[%emt 00:00:07]} Ra3 {[%clk 01:05:08]} {[%emt 00:12:33]} 19. Nxc8
{[%clk 01:27:35]} {[%emt 00:00:45]} Rxc8 {[%clk 01:05:26]} {[%emt 00:00:13]} 20.
Ra1 {[%clk 01:23:17]} {[%emt 00:04:48]} Rca8 {[%clk 01:01:51]} {[%emt
00:04:05]} 21. Rxa3 {[%clk 01:23:28]} {[%emt 00:00:18]} Rxa3 {[%clk 01:00:55]}
{[%emt 00:01:25]} 22. Ne1 {[%clk 01:14:21]} {[%emt 00:09:37]} Bxe1 {[%clk
00:52:44]} {[%emt 00:08:43]} 23. Rxe1 {[%clk 01:14:34]} {[%emt 00:00:16]} Qb4
{[%clk 00:53:06]} {[%emt 00:00:09]} 24. Rf1 {[%clk 01:11:35]} {[%emt 00:03:27]}
Qc3 {[%clk 00:39:01]} {[%emt 00:14:35]} 25. Bb1 {[%clk 01:10:29]} {[%emt
00:01:34]} Ra1 {[%clk 00:34:51]} {[%emt 00:04:43]} 26. Qg4 {[%clk 01:09:36]}
{[%emt 00:01:22]} Qb2 {[%clk 00:29:52]} {[%emt 00:05:31]} 27. Bd3 {[%clk
01:08:10]} {[%emt 00:01:55]} Rxf1+ {[%clk 00:28:49]} {[%emt 00:01:33]} 28. Kxf1
{[%clk 01:08:14]} {[%emt 00:00:25]} Qd2 {[%clk 00:28:17]} {[%emt 00:01:02]} 29.
Be2 {[%clk 01:07:20]} {[%emt 00:01:24]} Nf6 {[%clk 00:25:48]} {[%emt 00:03:00]}
30. Qc8+ {[%clk 01:06:56]} {[%emt 00:00:53]} Kg7 {[%clk 00:26:16]} {[%emt
00:00:02]} 31. f3 {[%clk 01:07:02]} {[%emt 00:00:25]} Qxe3 {[%clk 00:19:20]}
{[%emt 00:07:26]} 32. Qxb7 {[%clk 01:06:56]} {[%emt 00:00:36]} Qxd4 {[%clk
00:11:51]} {[%emt 00:07:59]} 33. Qxc6 {[%clk 01:06:45]} {[%emt 00:00:40]} Qe5
{[%clk 00:09:55]} {[%emt 00:02:27]} 34. g3 {[%clk 01:04:19]} {[%emt 00:02:55]}
h5 {[%clk 00:07:43]} {[%emt 00:02:43]} 35. Qc5 {[%clk 00:54:42]} {[%emt
00:10:05]} h4 {[%clk 00:05:45]} {[%emt 00:02:30]} 36. Kf2 {[%clk 00:51:26]}
{[%emt 00:03:46]} Qf5 {[%clk 00:03:43]} {[%emt 00:02:32]} 37. Qd4 {[%clk
00:51:38]} {[%emt 00:00:17]} Qh3 {[%clk 00:00:43]} {[%emt 00:03:31]} 38. Qxh4
{[%clk 00:50:50]} {[%emt 00:01:16]} Qxh4 {[%clk 00:01:08]} {[%emt 00:00:07]} 39.
gxh4 {[%clk 00:51:06]} {[%emt 00:00:13]} Nh5 {[%clk 00:00:33]} {[%emt
00:01:05]} 40. Ke3 {[%clk 00:50:32]} {[%emt 00:01:03]} Kf6 {[%clk 00:00:34]}
{[%emt 00:00:31]} 41. Kd4 {[%clk 00:46:01]} {[%emt 00:05:01]} Nf4 {[%clk
00:22:24]} {[%emt 00:08:41]} 42. Bb5 {[%clk 01:11:13]} {[%emt 00:05:17]} Ne6+
{[%clk 00:07:27]} {[%emt 00:15:27]} 43. Kxd5 {[%clk 01:10:44]} {[%emt
00:00:58]} Nc7+ {[%clk 00:07:49]} {[%emt 00:00:09]} 44. Kc6 {[%clk 01:10:48]}
{[%emt 00:00:26]} Nxb5 {[%clk 00:08:18]} {[%emt 00:00:01]} 45. Kxb5 {[%clk
01:10:57]} {[%emt 00:00:21]} Ke5 {[%clk 00:08:44]} {[%emt 00:00:03]} 46. Kc4
{[%clk 01:04:10]} {[%emt 00:07:17]} Kf4 {[%clk 00:05:53]} {[%emt 00:03:22]} 47.
Kd5 {[%clk 01:04:18]} {[%emt 00:00:21]} f5 {[%clk 00:01:49]} {[%emt 00:04:35]}
48. Ke6 {[%clk 01:04:26]} {[%emt 00:00:21]} Kxf3 {[%clk 00:02:08]} {[%emt
00:00:11]} 49. h5 {[%clk 01:04:23]} {[%emt 00:00:34]} gxh5 {[%clk 00:02:28]}
{[%emt 00:00:10]} 50. Kxf5 {[%clk 01:04:49]} {[%emt 00:00:04]} h4 {[%clk
00:02:53]} {[%emt 00:00:05]} 51. h3 {[%clk 01:01:39]} {[%emt 00:03:38]} Kg3
{[%clk 00:03:21]} {[%emt 00:00:03]} 52. Ke4 {[%clk 01:02:00]} {[%emt 00:00:08]}
Kg2 {[%clk 00:03:16]} {[%emt 00:00:35]} 53. Kf4 {[%clk 01:01:28]} {[%emt
00:01:03]} 1/2-1/2

[Event "Masters Tournament (MTO)"]
[Site "Biel, Switzerland"]
[Date "2026.07.23"]
[Round "10.41"]
[White "Tan, Jimmy"]
[Black "Damen, Josephine"]
[Result "1-0"]
[TimeControl "100+30+30sec/move"]
[WhiteTitle "-"]
[BlackTitle "-"]
[WhiteFideId "129057499"]
[BlackFideId "1074369"]
[WhiteElo "1953"]
[BlackElo "1971"]

1. d4 {[%clk 01:40:57]} Nf6 {[%clk 01:40:55]} {[%emt 00:00:07]} 2. Bf4 {[%clk
01:41:22]} {[%emt 00:00:04]} g6 {[%clk 01:41:18]} {[%emt 00:00:06]} 3. Nd2
{[%clk 01:41:36]} {[%emt 00:00:16]} Bg7 {[%clk 01:41:03]} {[%emt 00:00:45]} 4.
e4 {[%clk 01:41:58]} {[%emt 00:00:08]} d6 {[%clk 01:41:00]} {[%emt 00:00:32]} 5.
Ngf3 {[%clk 01:42:17]} {[%emt 00:00:11]} O-O {[%clk 01:41:02]} {[%emt
00:00:29]} 6. c3 {[%clk 01:42:39]} {[%emt 00:00:08]} Nbd7 {[%clk 01:40:26]}
{[%emt 00:01:05]} 7. h3 {[%clk 01:42:37]} {[%emt 00:00:32]} Re8 {[%clk
01:39:48]} {[%emt 00:01:09]} 8. Bc4 {[%clk 01:42:02]} {[%emt 00:01:05]} e5
{[%clk 01:36:44]} {[%emt 00:03:34]} 9. dxe5 {[%clk 01:41:44]} {[%emt 00:00:48]}
dxe5 {[%clk 01:37:06]} {[%emt 00:00:08]} 10. Be3 {[%clk 01:41:35]} {[%emt
00:00:39]} Re7 {[%clk 01:26:59]} {[%emt 00:10:37]} 11. Qc2 {[%clk 01:39:27]}
{[%emt 00:02:38]} c6 {[%clk 01:26:11]} {[%emt 00:01:19]} 12. O-O {[%clk
01:39:21]} {[%emt 00:00:35]} Nh5 {[%clk 01:25:02]} {[%emt 00:01:39]} 13. Rfd1
{[%clk 01:35:21]} {[%emt 00:04:30]} Nf4 {[%clk 01:23:53]} {[%emt 00:01:38]} 14.
Bf1 {[%clk 01:35:02]} {[%emt 00:00:50]} Qc7 {[%clk 01:21:50]} {[%emt 00:02:33]}
15. a4 {[%clk 01:32:03]} {[%emt 00:03:29]} Re8 {[%clk 01:17:04]} {[%emt
00:05:16]} 16. Nc4 {[%clk 01:30:01]} {[%emt 00:02:32]} Bf8 {[%clk 01:12:31]}
{[%emt 00:05:03]} 17. g3 {[%clk 01:28:34]} {[%emt 00:01:58]} Ne6 {[%clk
01:10:06]} {[%emt 00:02:54]} 18. b4 {[%clk 01:25:39]} {[%emt 00:03:26]} f6
{[%clk 01:09:32]} {[%emt 00:01:04]} 19. Rd2 {[%clk 01:16:54]} {[%emt 00:09:14]}
Nb6 {[%clk 01:04:11]} {[%emt 00:05:50]} 20. Nb2 {[%clk 01:14:59]} {[%emt
00:02:27]} Kg7 {[%clk 01:01:56]} {[%emt 00:02:44]} 21. a5 {[%clk 01:13:22]}
{[%emt 00:02:07]} Nd7 {[%clk 01:02:20]} {[%emt 00:00:05]} 22. Nc4 {[%clk
01:11:44]} {[%emt 00:02:09]} Nd8 {[%clk 01:00:14]} {[%emt 00:02:35]} 23. Nh4
{[%clk 01:05:26]} {[%emt 00:06:49]} Nf7 {[%clk 00:59:00]} {[%emt 00:01:45]} 24.
Rad1 {[%clk 01:03:35]} {[%emt 00:02:20]} Re6 {[%clk 00:49:47]} {[%emt
00:09:43]} 25. Qb3 {[%clk 00:59:34]} {[%emt 00:04:31]} Nd6 {[%clk 00:44:26]}
{[%emt 00:05:51]} 26. Nxd6 {[%clk 00:56:49]} {[%emt 00:03:16]} Rxd6 {[%clk
00:44:45]} {[%emt 00:00:10]} 27. Rxd6 {[%clk 00:56:55]} {[%emt 00:00:25]} Bxd6
{[%clk 00:45:09]} {[%emt 00:00:05]} 28. Qe6 {[%clk 00:57:10]} {[%emt 00:00:15]}
Bf8 {[%clk 00:45:25]} {[%emt 00:00:14]} 29. Bc4 {[%clk 00:57:26]} {[%emt
00:00:15]} 1-0